[Event "Masterklassen-Elit 2025"]
[Site "Uppsala, Sweden"]
[Date "2025.06.30"]
[Round "3.4"]
[White "Wiedenkeller, Michael"]
[Black "Ostlund, Joar"]
[Result "1/2-1/2"]
[TimeControl "90 min for 40 move + 30 min with an increment of 30 sec starting move 1"]
[WhiteTitle "IM"]
[BlackTitle "FM"]
[WhiteFideId "1700146"]
[BlackFideId "1735020"]
[WhiteElo "2384"]
[BlackElo "2322"]

1. c4 {[%clk 01:30:11]} {[%emt 00:00:48]} e6 {[%clk 01:30:37]} {[%emt
00:00:23]} 2. g3 {[%clk 01:29:28]} {[%emt 00:01:14]} d5 {[%clk 01:30:48]}
{[%emt 00:00:19]} 3. Nf3 {[%clk 01:29:40]} {[%emt 00:00:17]} dxc4 {[%clk
01:30:41]} {[%emt 00:00:37]} 4. Bg2 {[%clk 01:29:10]} {[%emt 00:01:01]} Nd7
{[%clk 01:30:19]} {[%emt 00:00:52]} 5. Qc2 {[%clk 01:23:44]} {[%emt 00:05:56]}
a6 {[%clk 01:29:56]} {[%emt 00:00:53]} 6. Na3 {[%clk 01:19:58]} {[%emt
00:04:15]} Bxa3 {[%clk 01:20:57]} {[%emt 00:09:30]} 7. bxa3 {[%clk 01:20:16]}
{[%emt 00:00:12]} Ngf6 {[%clk 01:14:54]} {[%emt 00:06:33]} 8. Bb2 {[%clk
01:10:41]} {[%emt 00:10:05]} O-O {[%clk 01:14:19]} {[%emt 00:01:04]} 9. a4
{[%clk 00:53:45]} {[%emt 00:17:27]} Rb8 {[%clk 01:02:03]} {[%emt 00:12:44]} 10.
Qxc4 {[%clk 00:47:31]} {[%emt 00:06:44]} b5 {[%clk 01:01:17]} {[%emt 00:01:16]}
11. axb5 {[%clk 00:47:15]} {[%emt 00:00:47]} axb5 {[%clk 01:01:37]} {[%emt
00:00:09]} 12. Qc2 {[%clk 00:47:14]} {[%emt 00:00:31]} Bb7 {[%clk 01:00:25]}
{[%emt 00:01:43]} 13. O-O {[%clk 00:46:46]} {[%emt 00:00:57]} c5 {[%clk
00:56:11]} {[%emt 00:04:44]} 14. Rfc1 {[%clk 00:42:53]} {[%emt 00:04:23]} Qe7
{[%clk 00:42:15]} {[%emt 00:14:26]} 15. Ne5 {[%clk 00:35:28]} {[%emt 00:07:56]}
Bxg2 {[%clk 00:39:06]} {[%emt 00:03:39]} 16. Kxg2 {[%clk 00:35:12]} {[%emt
00:00:45]} Rfc8 {[%clk 00:38:15]} {[%emt 00:01:21]} 17. a4 {[%clk 00:31:56]}
{[%emt 00:03:47]} b4 {[%clk 00:21:30]} {[%emt 00:17:14]} 18. Qb3 {[%clk
00:27:01]} {[%emt 00:05:25]} Nxe5 {[%clk 00:18:25]} {[%emt 00:03:34]} 19. Bxe5
{[%clk 00:27:25]} {[%emt 00:00:07]} Ra8 {[%clk 00:18:43]} {[%emt 00:00:12]} 20.
Qc4 {[%clk 00:12:11]} {[%emt 00:15:44]} Qd7 {[%clk 00:16:07]} {[%emt 00:03:06]}
21. Bxf6 {[%clk 00:11:51]} {[%emt 00:00:50]} gxf6 {[%clk 00:16:22]} {[%emt
00:00:15]} 22. Qg4+ {[%clk 00:10:27]} {[%emt 00:01:55]} Kf8 {[%clk 00:12:55]}
{[%emt 00:03:57]} 23. Qf4 {[%clk 00:09:40]} {[%emt 00:01:16]} Qd5+ {[%clk
00:13:20]} {[%emt 00:00:05]} 24. f3 {[%clk 00:07:51]} {[%emt 00:02:19]} Qe5
{[%clk 00:13:26]} {[%emt 00:00:24]} 25. Qxe5 {[%clk 00:05:05]} {[%emt
00:03:16]} fxe5 {[%clk 00:13:53]} {[%emt 00:00:02]} 26. Rc4 {[%clk 00:04:19]}
{[%emt 00:01:16]} Ke7 {[%clk 00:13:42]} {[%emt 00:00:42]} 27. f4 {[%clk
00:04:29]} {[%emt 00:00:20]} Kd6 {[%clk 00:03:21]} {[%emt 00:10:51]} 28. fxe5+
{[%clk 00:04:31]} {[%emt 00:00:29]} Kxe5 {[%clk 00:03:43]} {[%emt 00:00:07]} 29.
d4+ {[%clk 00:02:03]} {[%emt 00:02:58]} Kd5 {[%clk 00:02:50]} {[%emt 00:01:25]}
30. Rac1 {[%clk 00:02:18]} {[%emt 00:00:14]} b3 {[%clk 00:02:08]} {[%emt
00:01:12]} 31. dxc5 {[%clk 00:01:07]} {[%emt 00:01:41]} b2 {[%clk 00:00:46]}
{[%emt 00:01:51]} 32. e4+ {[%clk 00:01:30]} {[%emt 00:00:07]} Kc6 {[%clk
00:00:57]} {[%emt 00:00:19]} 33. Rb1 {[%clk 00:01:16]} {[%emt 00:00:45]} Rcb8
{[%clk 00:01:22]} {[%emt 00:00:05]} 34. Kf3 {[%clk 00:00:40]} {[%emt 00:01:06]}
Rb3+ {[%clk 00:01:31]} {[%emt 00:00:21]} 35. Ke2 {[%clk 00:01:09]} Rd8 {[%clk
00:00:36]} {[%emt 00:01:25]} 36. Rc2 {[%clk 00:01:24]} {[%emt 00:00:16]} Rd4
{[%clk 00:00:55]} {[%emt 00:00:10]} 37. Rbxb2 {[%clk 00:01:05]} {[%emt
00:00:50]} Rxe4+ {[%clk 00:01:18]} {[%emt 00:00:07]} 38. Kf2 {[%clk 00:01:05]}
{[%emt 00:00:30]} Rxb2 {[%clk 00:01:33]} {[%emt 00:00:15]} 39. Rxb2 {[%clk
00:01:33]} {[%emt 00:00:01]} Rxa4 {[%clk 00:01:54]} {[%emt 00:00:10]} 40. Rb6+
{[%clk 00:00:37]} {[%emt 00:01:26]} Kxc5 {[%clk 00:00:43]} {[%emt 00:01:40]} 41.
Rb7 {[%clk 00:00:59]} {[%emt 00:00:08]} Ra2+ {[%clk 00:00:55]} {[%emt
00:00:18]} 42. Kf3 {[%clk 00:25:08]} {[%emt 00:06:22]} Rxh2 {[%clk 00:24:49]}
{[%emt 00:06:35]} 43. Rxf7 {[%clk 00:25:27]} {[%emt 00:00:11]} Kd4 {[%clk
00:24:24]} {[%emt 00:00:54]} 44. Rd7+ {[%clk 00:24:40]} {[%emt 00:01:19]} Ke5
{[%clk 00:24:43]} {[%emt 00:00:10]} 45. Ra7 {[%clk 00:24:05]} {[%emt 00:01:05]}
Kf6 {[%clk 00:24:30]} {[%emt 00:00:43]} 46. Rb7 {[%clk 00:24:17]} {[%emt
00:00:18]} Rh5 {[%clk 00:24:40]} {[%emt 00:00:19]} 47. Ra7 {[%clk 00:23:09]}
{[%emt 00:01:39]} Rf5+ {[%clk 00:24:37]} {[%emt 00:00:32]} 48. Ke4 {[%clk
00:22:56]} {[%emt 00:00:43]} h6 {[%clk 00:20:06]} {[%emt 00:05:01]} 49. Rh7
{[%clk 00:22:45]} {[%emt 00:00:41]} Rh5 {[%clk 00:19:42]} {[%emt 00:00:55]} 50.
Rh8 {[%clk 00:21:55]} {[%emt 00:01:20]} Rh1 {[%clk 00:19:52]} {[%emt 00:00:19]}
51. Kf3 {[%clk 00:21:51]} {[%emt 00:00:35]} Kg7 {[%clk 00:18:34]} {[%emt
00:01:48]} 52. Re8 {[%clk 00:22:08]} {[%emt 00:00:12]} Rf1+ {[%clk 00:18:51]}
{[%emt 00:00:14]} 53. Ke4 {[%clk 00:19:49]} {[%emt 00:02:49]} Kf7 {[%clk
00:15:03]} {[%emt 00:04:17]} 54. Rh8 {[%clk 00:19:59]} {[%emt 00:00:21]} Rh1
{[%clk 00:15:00]} {[%emt 00:00:33]} 55. Kf3 {[%clk 00:19:16]} {[%emt 00:01:12]}
Kg7 {[%clk 00:15:17]} {[%emt 00:00:13]} 56. Re8 {[%clk 00:19:19]} {[%emt
00:00:27]} Kf6 {[%clk 00:15:38]} {[%emt 00:00:10]} 57. Rh8 {[%clk 00:18:55]}
{[%emt 00:00:54]} Kg5 {[%clk 00:15:03]} {[%emt 00:01:05]} 58. Rg8+ {[%clk
00:19:05]} {[%emt 00:00:20]} Kf5 {[%clk 00:13:26]} {[%emt 00:02:06]} 59. Rf8+
{[%clk 00:19:21]} {[%emt 00:00:14]} Ke5 {[%clk 00:13:21]} {[%emt 00:00:35]} 60.
Rh8 {[%clk 00:19:37]} {[%emt 00:00:15]} Rf1+ {[%clk 00:13:43]} {[%emt
00:00:08]} 61. Ke3 {[%clk 00:19:34]} {[%emt 00:00:33]} Rf6 {[%clk 00:14:03]}
{[%emt 00:00:06]} 62. Ra8 {[%clk 00:19:30]} {[%emt 00:00:38]} Kf5 {[%clk
00:14:05]} {[%emt 00:00:28]} 63. Ra4 {[%clk 00:19:08]} {[%emt 00:00:52]} e5
{[%clk 00:13:58]} {[%emt 00:00:37]} 64. Rh4 {[%clk 00:16:54]} {[%emt 00:02:44]}
Re6 {[%clk 00:11:07]} {[%emt 00:03:22]} 65. Kf3 {[%clk 00:16:34]} {[%emt
00:00:49]} Kg5 {[%clk 00:08:59]} {[%emt 00:02:38]} 66. Rg4+ {[%clk 00:16:46]}
{[%emt 00:00:18]} Kf6 {[%clk 00:08:28]} {[%emt 00:01:01]} 67. Rh4 {[%clk
00:17:04]} {[%emt 00:00:13]} Kg6 {[%clk 00:07:36]} {[%emt 00:01:21]} 68. Rg4+
{[%clk 00:17:13]} {[%emt 00:00:21]} Kf5 {[%clk 00:07:23]} {[%emt 00:00:44]} 69.
Rh4 {[%clk 00:17:27]} {[%emt 00:00:15]} Rg6 {[%clk 00:07:22]} {[%emt 00:00:32]}
70. Rh5+ {[%clk 00:17:25]} {[%emt 00:00:31]} Ke6 {[%clk 00:05:54]} {[%emt
00:01:58]} 71. Ke4 {[%clk 00:17:02]} {[%emt 00:00:54]} Kf6 {[%clk 00:05:58]}
{[%emt 00:00:25]} 72. Rf5+ {[%clk 00:17:01]} {[%emt 00:00:31]} Kg7 {[%clk
00:06:22]} {[%emt 00:00:06]} 73. Rxe5 {[%clk 00:16:09]} {[%emt 00:01:23]} Rxg3
{[%clk 00:06:42]} {[%emt 00:00:10]} 74. Re8 {[%emt 00:03:55]} 1/2-1/2

[Event "Masterklassen-Elit 2025"]
[Site "Uppsala, Sweden"]
[Date "2025.06.30"]
[Round "3.5"]
[White "Ljung, Harald"]
[Black "Lindberg, Bengt"]
[Result "0-1"]
[TimeControl "90 min for 40 move + 30 min with an increment of 30 sec starting move 1"]
[BlackTitle "IM"]
[WhiteFideId "1738178"]
[BlackFideId "1700359"]
[WhiteElo "2194"]
[BlackElo "2334"]

1. d4 {[%clk 01:30:57]} {[%emt 00:00:02]} Nf6 {[%clk 01:30:47]} {[%emt
00:00:12]} 2. Nf3 {[%clk 01:30:48]} {[%emt 00:00:39]} e6 {[%clk 01:30:50]}
{[%emt 00:00:27]} 3. g3 {[%clk 01:28:09]} {[%emt 00:03:11]} d5 {[%clk
01:28:58]} {[%emt 00:02:20]} 4. Bg2 {[%clk 01:28:32]} {[%emt 00:00:07]} Be7
{[%clk 01:29:18]} {[%emt 00:00:11]} 5. O-O {[%clk 01:28:55]} {[%emt 00:00:07]}
O-O {[%clk 01:29:34]} {[%emt 00:00:12]} 6. b3 {[%clk 01:29:16]} {[%emt
00:00:11]} a5 {[%clk 01:27:42]} {[%emt 00:02:21]} 7. c4 {[%clk 01:27:37]}
{[%emt 00:02:10]} a4 {[%clk 01:27:04]} {[%emt 00:01:08]} 8. Nc3 {[%clk
01:26:34]} {[%emt 00:01:33]} axb3 {[%clk 01:25:02]} {[%emt 00:02:32]} 9. Qxb3
{[%clk 01:26:51]} {[%emt 00:00:12]} Nc6 {[%clk 01:21:27]} {[%emt 00:04:05]} 10.
cxd5 {[%clk 01:19:19]} {[%emt 00:08:03]} exd5 {[%clk 01:18:31]} {[%emt
00:03:26]} 11. Bg5 {[%clk 01:13:27]} {[%emt 00:06:22]} Na5 {[%clk 01:11:55]}
{[%emt 00:07:05]} 12. Qc2 {[%clk 01:13:19]} {[%emt 00:00:37]} c6 {[%clk
01:11:03]} {[%emt 00:01:23]} 13. Rfd1 {[%clk 01:01:51]} {[%emt 00:11:58]} Be6
{[%clk 01:02:02]} {[%emt 00:09:30]} 14. a4 {[%clk 00:52:23]} {[%emt 00:09:59]}
Nc4 {[%clk 01:00:16]} {[%emt 00:02:16]} 15. Ne5 {[%clk 00:47:58]} {[%emt
00:04:55]} Nxe5 {[%clk 00:53:09]} {[%emt 00:07:36]} 16. dxe5 {[%clk 00:48:23]}
{[%emt 00:00:05]} Ng4 {[%clk 00:52:23]} {[%emt 00:01:16]} 17. Bxe7 {[%clk
00:43:24]} {[%emt 00:05:30]} Qxe7 {[%clk 00:51:02]} {[%emt 00:01:50]} 18. e4
{[%clk 00:41:51]} {[%emt 00:02:04]} dxe4 {[%clk 00:49:03]} {[%emt 00:02:28]} 19.
Bxe4 {[%clk 00:37:46]} {[%emt 00:04:35]} g6 {[%clk 00:46:11]} {[%emt 00:03:22]}
20. Qb2 {[%clk 00:37:25]} {[%emt 00:00:52]} Nxe5 {[%clk 00:39:22]} {[%emt
00:07:18]} 21. Rab1 {[%clk 00:37:51]} {[%emt 00:00:04]} Rab8 {[%clk 00:39:15]}
{[%emt 00:00:37]} 22. Bg2 {[%clk 00:30:03]} {[%emt 00:08:18]} Bf5 {[%clk
00:36:08]} {[%emt 00:03:37]} 23. Ra1 {[%clk 00:29:41]} {[%emt 00:00:53]} Rfd8
{[%clk 00:34:40]} {[%emt 00:01:57]} 24. Rxd8+ {[%clk 00:27:51]} {[%emt
00:02:21]} Rxd8 {[%clk 00:34:35]} {[%emt 00:00:35]} 25. a5 {[%clk 00:25:48]}
{[%emt 00:02:33]} Nc4 {[%clk 00:27:23]} {[%emt 00:07:41]} 26. Qa2 {[%clk
00:24:11]} {[%emt 00:02:07]} Qc5 {[%clk 00:18:47]} {[%emt 00:09:05]} 27. a6
{[%clk 00:20:58]} {[%emt 00:03:45]} bxa6 {[%clk 00:18:38]} {[%emt 00:00:39]} 28.
Qxa6 {[%clk 00:17:58]} {[%emt 00:03:30]} Rd2 {[%clk 00:13:50]} {[%emt
00:05:16]} 29. Rf1 {[%clk 00:17:56]} {[%emt 00:00:33]} Ne5 {[%clk 00:10:18]}
{[%emt 00:04:02]} 30. Qa8+ {[%clk 00:18:14]} {[%emt 00:00:13]} Kg7 {[%clk
00:10:35]} {[%emt 00:00:12]} 31. Qa1 {[%clk 00:18:41]} {[%emt 00:00:04]} Qd4
{[%clk 00:10:16]} {[%emt 00:00:47]} 32. Qa5 {[%clk 00:16:39]} {[%emt 00:02:33]}
Nc4 {[%clk 00:08:47]} {[%emt 00:01:59]} 33. Qa1 {[%clk 00:16:11]} {[%emt
00:00:58]} Bd3 {[%clk 00:06:49]} {[%emt 00:02:28]} 34. Ne4 {[%clk 00:14:09]}
{[%emt 00:02:32]} Bxf1 {[%clk 00:06:19]} {[%emt 00:01:00]} 0-1

[Event "Masterklassen-Elit 2025"]
[Site "Uppsala, Sweden"]
[Date "2025.07.01"]
[Round "4.1"]
[White "Carlsson, Ludvig"]
[Black "Thorn, Eric"]
[Result "1-0"]
[TimeControl "90 min for 40 move + 30 min with an increment of 30 sec starting move 1"]
[WhiteTitle "IM"]
[BlackTitle "FM"]
[WhiteFideId "1727010"]
[BlackFideId "1710729"]
[WhiteElo "2379"]
[BlackElo "2357"]

1. e4 {[%clk 01:30:59]} e5 {[%clk 01:29:51]} {[%emt 00:01:09]} 2. Nf3 {[%clk
01:31:22]} {[%emt 00:00:06]} Nc6 {[%clk 01:30:15]} {[%emt 00:00:07]} 3. Bc4
{[%clk 01:31:47]} {[%emt 00:00:05]} Nf6 {[%clk 01:30:12]} {[%emt 00:00:34]} 4.
Ng5 {[%clk 01:32:08]} {[%emt 00:00:08]} d5 {[%clk 01:28:51]} {[%emt 00:01:52]}
5. exd5 {[%clk 01:32:31]} {[%emt 00:00:06]} Na5 {[%clk 01:27:32]} {[%emt
00:01:50]} 6. Bb5+ {[%clk 01:32:54]} {[%emt 00:00:07]} c6 {[%clk 01:27:11]}
{[%emt 00:00:50]} 7. dxc6 {[%clk 01:33:17]} {[%emt 00:00:07]} bxc6 {[%clk
01:27:39]} {[%emt 00:00:03]} 8. Bd3 {[%clk 01:33:38]} {[%emt 00:00:09]} Nd5
{[%clk 01:24:12]} {[%emt 00:03:57]} 9. Nf3 {[%clk 01:34:00]} {[%emt 00:00:07]}
Bd6 {[%clk 01:23:40]} {[%emt 00:01:03]} 10. O-O {[%clk 01:34:21]} {[%emt
00:00:08]} O-O {[%clk 01:17:48]} {[%emt 00:06:22]} 11. Re1 {[%clk 01:34:45]}
{[%emt 00:00:05]} Re8 {[%clk 01:17:27]} {[%emt 00:00:53]} 12. Nc3 {[%clk
01:33:44]} {[%emt 00:01:30]} f5 {[%clk 01:12:56]} {[%emt 00:05:01]} 13. Bf1
{[%clk 01:33:42]} {[%emt 00:00:32]} Nf6 {[%clk 01:07:27]} {[%emt 00:05:59]} 14.
d3 {[%clk 01:27:09]} {[%emt 00:07:02]} Rb8 {[%clk 01:04:50]} {[%emt 00:03:08]}
15. b3 {[%clk 01:15:02]} {[%emt 00:12:36]} c5 {[%clk 01:01:41]} {[%emt
00:03:40]} 16. g3 {[%clk 01:09:17]} {[%emt 00:06:15]} Rb7 {[%clk 00:48:24]}
{[%emt 00:13:48]} 17. Bg2 {[%clk 01:07:42]} {[%emt 00:02:04]} Rd7 {[%clk
00:48:28]} {[%emt 00:00:26]} 18. Nh4 {[%clk 01:04:05]} {[%emt 00:04:07]} e4
{[%clk 00:46:00]} {[%emt 00:02:58]} 19. Nxf5 {[%clk 00:54:59]} {[%emt
00:09:36]} Be5 {[%clk 00:45:18]} {[%emt 00:01:13]} 20. Nxe4 {[%clk 00:30:23]}
{[%emt 00:25:05]} Bxa1 {[%clk 00:36:19]} {[%emt 00:09:30]} 21. Bg5 {[%clk
00:25:40]} {[%emt 00:05:11]} Bd4 {[%clk 00:30:34]} {[%emt 00:06:16]} 22. Nxd4
{[%clk 00:23:29]} {[%emt 00:02:42]} Rxe4 {[%clk 00:24:45]} {[%emt 00:06:19]} 23.
Rxe4 {[%clk 00:22:55]} {[%emt 00:01:03]} Rxd4 {[%clk 00:20:20]} {[%emt
00:04:55]} 24. Re5 {[%clk 00:16:47]} {[%emt 00:06:38]} Nb7 {[%clk 00:16:10]}
{[%emt 00:04:41]} 25. Qe1 {[%clk 00:14:51]} {[%emt 00:02:25]} Kf8 {[%clk
00:14:16]} {[%emt 00:02:24]} 26. Be3 {[%clk 00:09:28]} {[%emt 00:05:52]} Rd7
{[%clk 00:12:55]} {[%emt 00:01:51]} 27. Qc3 {[%clk 00:09:49]} {[%emt 00:00:10]}
Rc7 {[%clk 00:09:05]} {[%emt 00:04:21]} 28. Bxc5+ {[%clk 00:09:50]} {[%emt
00:00:28]} Kg8 {[%clk 00:04:03]} {[%emt 00:05:33]} 29. Qc4+ {[%clk 00:08:22]}
{[%emt 00:01:57]} Kh8 {[%clk 00:04:01]} {[%emt 00:00:32]} 30. b4 {[%clk
00:06:37]} {[%emt 00:02:15]} Nd7 {[%clk 00:01:46]} {[%emt 00:02:44]} 31. Rd5
{[%clk 00:03:34]} {[%emt 00:03:33]} Qe8 {[%clk 00:01:57]} {[%emt 00:00:20]} 32.
Qf4 {[%clk 00:02:53]} {[%emt 00:01:10]} Rc6 {[%clk 00:00:58]} {[%emt 00:01:30]}
33. Bd4 {[%clk 00:03:07]} {[%emt 00:00:15]} Nf6 {[%clk 00:00:33]} {[%emt
00:00:56]} 34. Re5 {[%clk 00:02:30]} {[%emt 00:01:08]} Re6 {[%clk 00:00:53]}
{[%emt 00:00:10]} 35. h3 {[%clk 00:01:54]} {[%emt 00:01:05]} Nd8 {[%clk
00:00:39]} {[%emt 00:00:44]} 36. c4 {[%clk 00:01:19]} {[%emt 00:01:05]} Nc6
{[%clk 00:00:45]} {[%emt 00:00:24]} 37. Rxe6 {[%clk 00:01:34]} {[%emt
00:00:15]} Qxe6 {[%clk 00:00:53]} {[%emt 00:00:22]} 38. Bc3 {[%clk 00:02:02]}
{[%emt 00:00:01]} Ne7 {[%clk 00:00:34]} {[%emt 00:00:50]} 39. g4 {[%clk
00:01:43]} {[%emt 00:00:49]} h6 {[%clk 00:00:36]} {[%emt 00:00:29]} 40. a4
{[%clk 00:01:20]} {[%emt 00:00:53]} a6 {[%clk 00:00:35]} {[%emt 00:00:31]} 41.
b5 {[%clk 00:27:57]} {[%emt 00:03:52]} Ng6 {[%clk 00:29:31]} {[%emt 00:01:33]}
42. Qe3 {[%clk 00:28:16]} {[%emt 00:00:11]} Qxe3 {[%clk 00:25:56]} {[%emt
00:04:06]} 43. fxe3 {[%clk 00:26:18]} {[%emt 00:02:27]} Nd7 {[%clk 00:26:24]}
{[%emt 00:00:02]} 44. Bd4 {[%clk 00:24:33]} {[%emt 00:02:14]} Nge5 {[%clk
00:24:58]} {[%emt 00:01:58]} 45. Be4 {[%clk 00:24:45]} {[%emt 00:00:18]} Nf7
{[%clk 00:23:32]} {[%emt 00:01:56]} 46. c5 {[%clk 00:24:45]} {[%emt 00:00:29]}
Ng5 {[%clk 00:23:49]} {[%emt 00:00:14]} 47. Bd5 {[%clk 00:24:27]} {[%emt
00:00:47]} axb5 {[%clk 00:23:33]} {[%emt 00:00:48]} 48. axb5 {[%clk 00:24:50]}
{[%emt 00:00:06]} Nf6 {[%clk 00:23:59]} {[%emt 00:00:03]} 49. Bxf6 {[%clk
00:24:54]} {[%emt 00:00:26]} gxf6 {[%clk 00:24:26]} {[%emt 00:00:03]} 50. b6
{[%clk 00:25:11]} {[%emt 00:00:13]} Nxh3+ {[%clk 00:24:07]} {[%emt 00:00:50]}
51. Kg2 {[%clk 00:25:33]} {[%emt 00:00:06]} 1-0

[Event "Masterklassen-Elit 2025"]
[Site "Uppsala, Sweden"]
[Date "2025.07.01"]
[Round "4.2"]
[White "Olsson, William"]
[Black "Andersson, Tommy"]
[Result "1/2-1/2"]
[TimeControl "90 min for 40 move + 30 min with an increment of 30 sec starting move 1"]
[WhiteTitle "IM"]
[BlackTitle "IM"]
[WhiteFideId "1741721"]
[BlackFideId "1703803"]
[WhiteElo "2365"]
[BlackElo "2348"]

1. d4 {[%clk 01:27:57]} {[%emt 00:03:03]} Nf6 {[%clk 01:30:13]} {[%emt
00:00:47]} 2. c4 {[%clk 01:28:19]} {[%emt 00:00:09]} e6 {[%clk 01:30:37]}
{[%emt 00:00:04]} 3. g3 {[%clk 01:28:44]} {[%emt 00:00:05]} Bb4+ {[%clk
01:27:40]} {[%emt 00:03:27]} 4. Bd2 {[%clk 01:28:08]} {[%emt 00:01:07]} c5
{[%clk 01:27:37]} {[%emt 00:00:33]} 5. Bxb4 {[%clk 01:27:54]} {[%emt 00:00:44]}
cxb4 {[%clk 01:28:01]} {[%emt 00:00:06]} 6. Bg2 {[%clk 01:28:13]} {[%emt
00:00:11]} O-O {[%clk 01:26:43]} {[%emt 00:01:47]} 7. e3 {[%clk 01:28:18]}
{[%emt 00:00:26]} d5 {[%clk 01:24:16]} {[%emt 00:02:56]} 8. Nd2 {[%clk
01:22:04]} {[%emt 00:06:44]} b6 {[%clk 01:19:53]} {[%emt 00:04:53]} 9. cxd5
{[%clk 01:21:15]} {[%emt 00:01:20]} Nxd5 {[%clk 01:16:49]} {[%emt 00:03:34]} 10.
e4 {[%clk 01:14:58]} {[%emt 00:06:47]} Ne7 {[%clk 01:14:28]} {[%emt 00:02:49]}
11. e5 {[%clk 01:12:18]} {[%emt 00:03:11]} Nbc6 {[%clk 01:13:46]} {[%emt
00:01:12]} 12. Ne2 {[%clk 00:59:28]} {[%emt 00:13:21]} Ba6 {[%clk 01:12:27]}
{[%emt 00:01:48]} 13. Nb3 {[%clk 00:56:06]} {[%emt 00:03:52]} Rc8 {[%clk
01:06:57]} {[%emt 00:06:00]} 14. O-O {[%clk 00:56:28]} {[%emt 00:00:09]} Bxe2
{[%clk 01:02:30]} {[%emt 00:04:57]} 15. Qxe2 {[%clk 00:56:56]} {[%emt
00:00:02]} Nxd4 {[%clk 01:02:36]} {[%emt 00:00:23]} 16. Nxd4 {[%clk 00:57:18]}
{[%emt 00:00:09]} Qxd4 {[%clk 01:03:03]} {[%emt 00:00:02]} 17. Rfd1 {[%clk
00:56:49]} {[%emt 00:00:59]} Qc5 {[%clk 01:03:01]} {[%emt 00:00:33]} 18. Bb7
{[%clk 00:50:24]} {[%emt 00:06:55]} Rc7 {[%clk 00:56:37]} {[%emt 00:06:53]} 19.
Be4 {[%clk 00:50:33]} {[%emt 00:00:21]} g6 {[%clk 00:53:32]} {[%emt 00:03:36]}
20. Bg2 {[%clk 00:49:10]} {[%emt 00:01:53]} Nf5 {[%clk 00:50:11]} {[%emt
00:03:51]} 21. Rd2 {[%clk 00:46:20]} {[%emt 00:03:20]} Qa5 {[%clk 00:44:13]}
{[%emt 00:06:27]} 22. Bh3 {[%clk 00:37:11]} {[%emt 00:09:40]} Ne7 {[%clk
00:42:26]} {[%emt 00:02:16]} 23. Bg2 {[%clk 00:31:22]} {[%emt 00:06:19]} Rc5
{[%clk 00:39:42]} {[%emt 00:03:14]} 24. f4 {[%clk 00:31:00]} {[%emt 00:00:53]}
Rfc8 {[%clk 00:33:08]} {[%emt 00:07:03]} 25. h4 {[%clk 00:30:25]} {[%emt
00:01:05]} b3 {[%clk 00:26:02]} {[%emt 00:07:36]} 26. a3 {[%clk 00:30:13]}
{[%emt 00:00:43]} Rc1+ {[%clk 00:25:41]} {[%emt 00:00:50]} 27. Rxc1 {[%emt
00:00:11]} Rxc1+ {[%clk 00:26:00]} {[%emt 00:00:09]} 28. Kh2 {[%clk 00:30:31]}
{[%emt 00:00:34]} Qc5 {[%clk 00:19:30]} {[%emt 00:07:00]} 29. Be4 {[%clk
00:30:53]} {[%emt 00:00:05]} Kg7 {[%clk 00:14:00]} {[%emt 00:06:02]} 30. Qd3
{[%clk 00:23:42]} {[%emt 00:07:41]} Nd5 {[%emt 00:11:11]} 31. Qxb3 {[%clk
00:17:10]} {[%emt 00:06:55]} Qg1+ {[%clk 00:01:47]} {[%emt 00:02:09]} 32. Kh3
{[%clk 00:17:31]} {[%emt 00:00:09]} Ne3 {[%clk 00:01:17]} {[%emt 00:01:00]} 33.
Qd3 {[%clk 00:17:23]} {[%emt 00:00:39]} Nf1 {[%clk 00:00:33]} {[%emt 00:01:14]}
34. Re2 {[%clk 00:16:58]} {[%emt 00:00:55]} Rd1 {[%clk 00:00:43]} {[%emt
00:00:20]} 35. Qf3 {[%clk 00:17:04]} {[%emt 00:00:24]} h5 {[%clk 00:00:53]}
{[%emt 00:00:20]} 36. Qf2 {[%clk 00:15:59]} {[%emt 00:01:35]} Qxf2 {[%clk
00:00:56]} {[%emt 00:00:26]} 37. Rxf2 {[%clk 00:16:27]} {[%emt 00:00:02]} Ne3
{[%clk 00:00:47]} {[%emt 00:00:39]} 38. Re2 {[%clk 00:16:35]} {[%emt 00:00:23]}
Ng4 {[%clk 00:00:33]} {[%emt 00:00:43]} 39. Bf3 {[%clk 00:15:44]} {[%emt
00:01:21]} Nh6 {[%clk 00:01:00]} {[%emt 00:00:04]} 40. Kg2 {[%clk 00:15:57]}
{[%emt 00:00:16]} Nf5 {[%emt 00:01:47]} 41. Be4 {[%clk 00:13:05]} {[%emt
00:01:41]} Nd4 {[%clk 00:01:21]} {[%emt 00:00:33]} 42. Rf2 {[%clk 00:13:30]}
{[%emt 00:00:05]} Re1 {[%clk 00:26:28]} {[%emt 00:05:23]} 43. Bd3 {[%clk
00:41:57]} {[%emt 00:02:03]} Re3 {[%clk 00:26:34]} {[%emt 00:00:23]} 44. Rd2
{[%clk 00:41:51]} {[%emt 00:00:36]} Nb3 {[%clk 00:24:36]} {[%emt 00:02:29]} 45.
Rd1 {[%clk 00:41:28]} {[%emt 00:00:54]} Nc5 {[%clk 00:24:13]} 46. Bc4 {[%clk
00:41:03]} {[%emt 00:01:47]} Ne4 {[%clk 00:18:24]} {[%emt 00:06:18]} 47. Rd3
{[%clk 00:40:41]} {[%emt 00:00:53]} Re1 {[%clk 00:18:45]} {[%emt 00:00:09]} 48.
Rd4 {[%clk 00:34:52]} {[%emt 00:06:19]} Re3 {[%clk 00:17:39]} {[%emt 00:01:36]}
49. Rd3 {[%clk 00:35:17]} {[%emt 00:00:06]} Re1 {[%clk 00:18:03]} {[%emt
00:00:05]} 50. b4 {[%clk 00:35:05]} {[%emt 00:00:42]} Rc1 {[%clk 00:17:53]}
{[%emt 00:00:40]} 51. Bb3 {[%clk 00:31:53]} {[%emt 00:03:42]} Rb1 {[%clk
00:15:54]} {[%emt 00:02:30]} 52. Ba4 {[%clk 00:28:57]} {[%emt 00:03:26]} Rc1
{[%clk 00:13:34]} {[%emt 00:02:49]} 53. Kf3 {[%clk 00:27:22]} {[%emt 00:02:05]}
Nc3 {[%clk 00:13:50]} {[%emt 00:00:15]} 54. Bb3 {[%clk 00:27:33]} {[%emt
00:00:19]} a5 {[%clk 00:13:27]} {[%emt 00:00:53]} 55. Ke3 {[%clk 00:22:30]}
{[%emt 00:05:32]} axb4 {[%clk 00:12:41]} {[%emt 00:01:16]} 56. axb4 {[%clk
00:22:59]} {[%emt 00:00:02]} 1/2-1/2